Cogmind - Beta 14 @@@ ROGUE MODE // 2024.09.22 @ 16:10:58 Player: Kinga Result: Core destroyed Performance ------------- Evolutions (5) 2500 Regions Visited (11) 2200 Robots Destroyed (92) 460 Value Destroyed (3098) 3098 Prototype IDs (18) 360 Alien Tech Used (2) 400 Bonus (1781) 1781 TOTAL SCORE: 10799 Bonus ------- High Alert Combat Kills 337 Follower Combat Kills 309 Entered DSFs 500 Met Imprinter 300 Acquired ECA 300 Met Zhirov 300 Friendly Fire -265 Cogmind --------- Core Integrity 0/1000 Matter 296/300 Energy 100/100 System Corruption 16% Temperature Cool (0) Movement Treading (135) Location -5/Zhirov Parts ------- > --- POWER (1) -------- (None) > --- PROPULSION (4) --- Experimental Biometal Heavy Treads > --- UTILITY (8) ------ Experimental Cooling System High-capacity Storage Unit Advanced Hacking Suite > --- WEAPON (4) ------- Molecular Scythe > --- INVENTORY (20) --- Armored Medium Treads Small Storage Unit Experimental ECM Suite Improved Medium Armor Plating Improved Medium Armor Plating Thermal Shield Hacking Drone Bay Rocket Array Rocket Array Rocket Array PL-3XN's Ring of Power Peak State ------------ > --- POWER ------------ Neutrino Core > --- PROPULSION ------- Experimental Biometal Heavy Treads Experimental Biometal Heavy Treads > --- UTILITY ---------- Experimental Cooling System High-capacity Storage Unit Experimental ECM Suite Advanced Hacking Suite Advanced Hacking Suite Advanced Hacking Suite Advanced Hacking Suite System Shield > --- WEAPON ----------- Proton Cannon Enhanced Gauss Cannon Enhanced Gauss Cannon Rocket Array > --- INVENTORY -------- Experimental Biometal Heavy Treads Experimental Cooling System Small Storage Unit Improved Medium Armor Plating Authchip [Weapon] Hacking Drone Bay Variable Charge Gun Variable Charge Gun Variable Charge Gun Proton Cannon Proton Cannon Gauss Rifle Rocket Array Rocket Array Molecular Scythe Molecular Scythe PL-3XN's Ring of Power [Rating: 123] Favorites ----------- Power Heavy Ion Engine Engine Heavy Ion Engine Power Core Light Nuclear Core Propulsion Light Treads Treads Light Treads Hover Unit Antigrav System Utility High-capacity Storage Unit Device Experimental Cooling System Storage High-capacity Storage Unit Processor Improved Targeting Computer Hackware Advanced Hacking Suite Protection Improved Medium Armor Plating Weapon Autogun Energy Gun Improved EM Shotgun Energy Cannon Proton Cannon Ballistic Gun Autogun Ballistic Cannon Enhanced Gauss Cannon Launcher Rocket Array Slashing Weapon Molecular Scythe Build | -11 -10 -9 -9 -7 -6 -6 -6 -5 -5 -5 -5 ------- Run | Yrd Mat Mat Min Zio Pro Fac DSF Fac Upp Upp Zhi Slots Evolved 10 | . . 2 . . . 6 . 2 . . . Power . | . . . . . . . . . . . . Propulsion 2 | . . . . . . 2 . . . . . Utility 6 | . . . . . . 4 . 2 . . . Weapon 2 | . . 2 . . . . . . . . . Parts Attached 79 | 6 2 10 . 4 . 6 10 24 15 1 1 Power 7 | 1 . 2 . . . . . 2 1 1 . Engine 3 | 1 . 2 . . . . . . . . . Core 4 | . . . . . . . . 2 1 1 . Reactor . | . . . . . . . . . . . . Propulsion 13 | 2 . 1 . . . 2 1 6 1 . . Treads 11 | 2 . 1 . . . 2 1 4 1 . . Leg . | . . . . . . . . . . . . Wheel . | . . . . . . . . . . . . Hover 2 | . . . . . . . . 2 . . . Flight . | . . . . . . . . . . . . Utility 29 | 1 1 2 . . . 4 4 10 7 . . Device 8 | . 1 . . . . . . 3 4 . . Storage 2 | 1 . 1 . . . . . . . . . Processor 5 | . . 1 . . . 2 2 . . . . Hackware 6 | . . . . . . . . 5 1 . . Protection 8 | . . . . . . 2 2 2 2 . . Artifact . | . . . . . . . . . . . . Weapon 30 | 2 1 5 . 4 . . 5 6 6 . 1 Energy Gun 10 | 2 1 2 . . . . 2 . 3 . . Energy Cannon 4 | . . . . 1 . . . 2 1 . . Ballistic Gun 9 | . . 3 . 2 . . 3 1 . . . Ballistic Cannon 2 | . . . . . . . . 2 . . . Launcher 2 | . . . . 1 . . . 1 . . . Special Weapon . | . . . . . . . . . . . . Impact Weapon . | . . . . . . . . . . . . Slashing Weapon 3 | . . . . . . . . . 2 . 1 Piercing Weapon . | . . . . . . . . . . . . Special Melee Weapon . | . . . . . . . . . . . . Unidentified Prototypes 9 | . . 2 . 1 . . . 3 1 . 2 Parts Lost 36 | . . 2 . . . . 2 15 6 3 8 Power 6 | . . 2 . . . . . 2 . 1 1 Propulsion 8 | . . . . . . . 1 5 1 . 1 Utility 12 | . . . . . . . . 6 2 . 4 Weapon 10 | . . . . . . . 1 2 3 2 2 Highest Loss Streak 8 | . . 1 . . . . 2 5 2 2 8 To Critical Strikes 1 | . . . . . . . . . 1 . . Average Slot Usage (%) 94 | . 88 97 100 100 100 96 95 91 74 84 69 Engine 7 | . 14 10 11 11 11 6 6 2 . . . Core 1 | . . . . . . . . 2 4 5 3 Treads 19 | . 28 22 22 22 22 26 23 14 10 11 10 Device 3 | . 3 . . . . . . 3 16 23 19 Storage 8 | . 14 11 11 11 11 6 6 5 5 5 5 Processor 9 | . . 10 11 11 11 17 20 10 . . . Hackware 4 | . . . . . . . . 10 12 11 11 Protection 3 | . . . . . . 11 13 12 3 5 4 Energy Gun 16 | . 28 21 22 22 22 13 12 5 14 13 4 Ballistic Gun 14 | . . 20 22 21 22 13 13 8 . . . Ballistic Cannon 1 | . . . . . . . . 5 . . . Peak Build Rating 123 | 6 7 20 20 24 22 32 52 123 116 114 102 Average Rating 45 | 4 6 15 20 21 22 31 44 77 103 110 96 On Entrance 40 | . 6 7 20 20 22 22 32 52 83 114 102 Naked Turns . | . . . . . . . . . . . . Heaviest Build 104 | 13 14 60 60 64 60 67 77 104 75 75 65 Greatest Support 170 | 40 40 40 40 40 40 80 80 170 170 170 170 Greatest Overweight (x) 8 | . . 1 1 1 1 . 1 8 . . . Average Overweight (x) . | . . . 1 1 1 . . . . . . Largest Inventory Capacity 20 | 8 8 20 20 20 20 20 20 20 20 20 20 Average Capacity 19 | 7 8 19 20 20 20 20 20 20 20 20 20 Most Carried 20 | 5 6 20 20 20 20 19 20 20 17 11 12 Average Carried 17 | 2 5 16 20 19 20 14 17 18 14 10 11 Final Capacity 20 | 8 8 20 20 20 20 20 20 20 20 20 20 Final Carried 20 | 4 6 20 20 20 20 14 20 18 11 11 11 Class Distribution -------------------- 57% | Gunner 17% | Scavenger-Gunner 8% | Hacker-Tank 7% | Tank 6% | Mutant Dominant Class ---------------- Mutant | -10/Materials Gunner | -9/Materials Gunner | -9/Mines Gunner | -7/Zion Gunner | -6/Proximity Caves Scavenger-Gunner | -6/Factory Scavenger-Gunner | -6/DSF Scavenger-Gunner | -5/Factory Tank | -5/Upper Caves Tank | -5/Upper Caves Mutant | -5/Zhirov Resources | -11 -10 -9 -9 -7 -6 -6 -6 -5 -5 -5 -5 ----------- Run | Yrd Mat Mat Min Zio Pro Fac DSF Fac Upp Upp Zhi Matter Collected 2078 | 256 20 337 16 48 48 . 198 855 275 25 . Remotely . | . . . . . . . . . . . . Salvage Created 3942 | 69 180 816 38 . 149 . 330 1684 473 203 . Parts 182 | 2 3 52 4 . 11 . 11 86 10 3 . Haulers Intercepted 6 | . 2 2 . . . . . 2 . . . Recyclers Shooed 3 | . . . . . . . . 3 . . . Parts Field Recycled . | . . . . . . . . . . . . Retrieved Matter . | . . . . . . . . . . . . Parts Self-Destructed 25 | . . . . . 16 . . . 7 2 . Prevented 3 | . . . . . . . . . 3 . . Kills | -11 -10 -9 -9 -7 -6 -6 -6 -5 -5 -5 -5 ------- Run | Yrd Mat Mat Min Zio Pro Fac DSF Fac Upp Upp Zhi Combat Hostiles Destroyed 58 | . 2 14 3 . 5 . 4 18 9 3 . Melee 2 | . . . . . . . . . 2 . . Guns 40 | . 2 14 2 . 5 . 4 6 4 3 . Cannons 11 | . . . . . . . . 8 3 . . AOE 4 | . . . 1 . . . . 3 . . . Classes Destroyed 15 | 1 2 4 . . 1 . 1 4 2 . . Worker 9 | . . . . . . . . 9 . . . Builder 6 | . . 1 . . . . . 5 . . . Hauler 6 | . 2 2 . . . . . 2 . . . Recycler 6 | 1 . 1 . . . . . 4 . . . Operator 3 | . . . . . . . . 3 . . . Drone 1 | . . . . . 1 . . . . . . Watcher 2 | . . 2 . . . . . . . . . Swarmer 17 | . . 3 3 . 4 . . 3 4 . . Grunt 21 | . 2 7 . . . . 4 3 3 2 . Brawler 3 | . . . . . . . . 1 1 1 . Sentry 6 | . . 4 . . . . . 2 . . . Programmer 9 | . . . . . . . . 9 . . . Behemoth 1 | . . . . . . . . . 1 . . Samaritan 2 | . . . . . . . . . 2 . . Wasp 1 | . . . . . 1 . . . . . . Mutant 1 | . . . . . . . 1 . . . . Best Kill Streak 10 | 1 3 9 3 . 2 . 4 10 4 3 . Combat Bots Only 6 | . 2 6 3 . 2 . 4 4 4 3 . Max Kills in Single Turn 4 | 1 1 1 2 . 2 . 1 4 1 1 . Gunslinging . | . . . . . . . . . . . . Exploded 2 | . . . 1 . . . . 2 . . . Melee 1 | . . . . . . . . . 1 . . Uniques/NPCs Destroyed . | . . . . . . . . . . . . Combat | -11 -10 -9 -9 -7 -6 -6 -6 -5 -5 -5 -5 -------- Run | Yrd Mat Mat Min Zio Pro Fac DSF Fac Upp Upp Zhi Hostile Shots Fired 470 | . 11 65 4 . 13 . 18 179 110 32 38 Missed 139 | . 3 22 1 . 4 . 2 71 24 8 4 Damage Taken 8452 | . 91 578 27 . 163 . 490 2850 1961 414 1878 Core 1131 | . 10 80 . . 36 . . 293 127 34 551 Absorbed by Shields . | . . . . . . . . . . . . Reduced by Siege Mode 165 | . . . . . . . . . 165 . . Ignored by Resistances 107 | . . . . . . . . 43 28 36 . Regen/Repaired (Parts) 85 | . . . . 85 . . . . . . . Core Remaining (%) 91 | 100 96 . . . 71 . 100 . . . . Volleys Fired 193 | . 12 32 2 4 6 . 6 93 30 8 . Largest 4 | . 2 4 4 2 4 . 4 4 4 3 . Hottest 282 | . 90 136 136 60 136 . 176 176 282 225 . Shots Fired 445 | . 24 97 8 5 18 . 24 169 75 24 1 Gun 338 | . 24 97 8 2 18 . 24 76 64 24 1 Cannon 105 | . . . . 3 . . . 91 11 . . Launcher 2 | . . . . . . . . 2 . . . Special . | . . . . . . . . . . . . Kinetic 227 | . . 63 4 2 12 . 12 123 11 . . Thermal 132 | . 24 16 . 3 . . . . 64 24 1 Explosive 2 | . . . . . . . . 2 . . . Electromagnetic 84 | . . 18 4 . 6 . 12 44 . . . Robot Hit Streak 26 | . 11 14 2 . 5 . 13 25 26 5 . Robot Miss Streak 6 | . 1 3 2 . 3 . 1 3 6 1 1 Penetration Max 1 | . . . . . . . . 1 . . . Secondary Targets 12 | . . 3 1 . 3 . 3 1 . 1 . Max Gunslinging Chain 1 | . . 1 1 . 1 . 1 1 . 1 . Shots Hit Robots 303 | . 19 58 4 . 11 . 18 117 58 16 2 Core Hits 171 | . 7 32 3 . 9 . 10 80 21 8 1 Critical Kills 1 | . . . . . . . . 1 . . . Critical Parts Destroyed 1 | . . . . . . . . 1 . . . Critical Strikes 8 | . 1 1 . . . . . 5 1 . . Burn 2 | . 1 1 . . . . . . . . . Destroy 2 | . . . . . . . . 2 . . . Blast 3 | . . . . . . . . 3 . . . Sever 1 | . . . . . . . . . 1 . . Melee Attacks 14 | . . . . . . . . . 9 . 5 Impact . | . . . . . . . . . . . . Slashing 14 | . . . . . . . . . 9 . 5 Piercing . | . . . . . . . . . . . . Sneak Attacks . | . . . . . . . . . . . . Combat Hostiles . | . . . . . . . . . . . . Follow-up Attacks 1 | . . . . . . . . . . . 1 Damage Inflicted 8832 | 10 246 1160 100 . 196 . 451 4608 1584 369 108 Guns 4547 | . 246 857 68 . 196 . 451 1293 1067 369 . Cannons 2219 | . . . . . . . . 2050 169 . . Explosions 1532 | . . 278 32 . . . . 1222 . . . Melee 408 | . . . . . . . . . 300 . 108 Ramming 126 | 10 . 25 . . . . . 43 48 . . Kinetic 3440 | . . 523 28 . 121 . 178 2421 169 . . Thermal 2304 | . 246 181 32 . . . . 409 1067 369 . Explosive 945 | . . 227 . . . . . 718 . . . Electromagnetic 1609 | . . 204 40 . 75 . 273 1017 . . . Impact . | . . . . . . . . . . . . Slashing 408 | . . . . . . . . . 300 . 108 Piercing . | . . . . . . . . . . . . Highest Corruption 16 | . . . . . . . . 10 15 15 16 Average Corruption 9 | . . . . . . . . 7 10 15 15 Corruption Purged . | . . . . . . . . . . . . Corruption Blocked . | . . . . . . . . . . . . Effects 77 | . . . . . . . . 37 25 7 8 Message Errors 18 | . . . . . . . . 9 7 1 1 Matter Fused 15 | . . . . . . . . 8 3 3 1 Heat Flow Errors 12 | . . . . . . . . 5 5 2 . Energy Discharges 9 | . . . . . . . . 5 2 . 2 Parts Rejected 1 | . . . . . . . . 1 . . . Data Loss (minor) 5 | . . . . . . . . 3 1 1 . Data Loss (major) 4 | . . . . . . . . 1 2 . 1 Misfires 6 | . . . . . . . . 2 3 . 1 Alerts 1 | . . . . . . . . . . . 1 Misdirections 1 | . . . . . . . . . . . 1 Weapon Failures 5 | . . . . . . . . 3 2 . . Overload Shots . | . . . . . . . . . . . . Overflow Damage 313 | . . 66 . . . . . 213 34 . . Projectiles 93 | . . . . . . . . 93 . . . Explosions 186 | . . 66 . . . . . 120 . . . Melee 34 | . . . . . . . . . 34 . . Knockbacks 7 | 1 . 1 . . . . . 5 . . . Impact 2 | 1 . 1 . . . . . . . . . Kinetic 5 | . . . . . . . . 5 . . . Secondary . | . . . . . . . . . . . . Self-Inflicted Damage 733 | . . 128 4 . . . . 601 . . . Shots 15 | . . 3 1 . . . . 11 . . . Rammed 13 | 1 . 3 . . . . . 5 4 . . Targets Rammed 14 | 2 . 3 . . . . . 5 4 . . Kicked . | . . . . . . . . . . . . Crushed 1 | 1 . . . . . . . . . . . Highest Temperature 458 | . 232 240 150 48 138 . 264 417 439 222 458 Average Temperature 109 | . 101 83 75 20 45 . 136 129 126 95 222 Received Heat Transfer 1545 | . 48 159 . . . . 100 216 315 147 560 Effects 2 | . . . . . . . . 2 . . . Shutdowns 1 | . . . . . . . . 1 . . . Interference 1 | . . . . . . . . 1 . . . Siege Activations 2 | . . . . . . . . . 2 . . Total Turns 67 | . . . . . . . . . 67 . . Longest Duration 47 | . . . . . . . . . 47 . . Robots Corrupted 5 | . . . . . . . . 3 2 . . Combat Hostiles 1 | . . . . . . . . 1 . . . Parts Fried 17 | . . 1 . . . . 1 13 2 . . Impact Corruptions 6 | . . . . . . . . . 6 . . Robots Melted 1 | . 1 . . . . . . . . . . Combat Hostiles . | . . . . . . . . . . . . Parts Melted 10 | . 3 1 . . . . . . 5 1 . Heat Transferred 3933 | . 719 521 50 . . . . 275 1739 629 . Parts Sabotaged . | . . . . . . . . . . . . Parts Stolen . | . . . . . . . . . . . . Parts Stripped . | . . . . . . . . . . . . Power Chain Reactions 6 | . . 2 1 . . . . 3 . . . Alert | -11 -10 -9 -9 -7 -6 -6 -6 -5 -5 -5 -5 ------- Run | Yrd Mat Mat Min Zio Pro Fac DSF Fac Upp Upp Zhi Peak Influence 1174 | 5 57 427 207 . . 144 214 1174 . . . Initial 139 | . 3 24 129 . . 139 100 112 . . . Average 308 | 1 18 180 181 . . 139 161 434 . . . Maximum Alert Level 4 | . . 2 1 . . . 1 4 . . . Low Security (%) 52 | 100 100 45 32 . . 100 69 43 . . . Level 1 23 | . . 46 67 . . . 30 16 . . . Level 2 6 | . . 8 . . . . . 8 . . . Level 3 12 | . . . . . . . . 22 . . . Level 4 5 | . . . . . . . . 9 . . . Level 5 . | . . . . . . . . . . . . High Security . | . . . . . . . . . . . . Max Security . | . . . . . . . . . . . . Sterilizations 1 | . . . . . . . 1 . . . . Squads Dispatched 9 | . . 2 . . . . 1 6 . . . Investigation . | . . . . . . . . . . . . Extermination 3 | . . . . . . . . 3 . . . Reinforcement 6 | . . 2 . . . . 1 3 . . . Assault . | . . . . . . . . . . . . Garrison . | . . . . . . . . . . . . Intercept . | . . . . . . . . . . . . Searches Triggered . | . . . . . . . . . . . . Construction Impeded 2 | . . . . . . . . 2 . . . Haulers Reinforced . | . . . . . . . . . . . . Active Scanning Responses . | . . . . . . . . . . . . Cargo Convoy Interrupts 1 | . . . . . . . . 1 . . . Stealth | -11 -10 -9 -9 -7 -6 -6 -6 -5 -5 -5 -5 --------- Run | Yrd Mat Mat Min Zio Pro Fac DSF Fac Upp Upp Zhi Distress Signals 6 | . . 5 . . . . . 1 . . . Communications Jammed . | . . . . . . . . . . . . Distress Signals . | . . . . . . . . . . . . Times Spotted 101 | . 2 22 3 . 10 . 7 38 10 5 4 Peak Tracking Total 6 | . 2 5 2 . 4 . 4 6 4 4 3 Tactical Retreats 7 | . . 1 . . . . . 4 1 1 . Traps | -11 -10 -9 -9 -7 -6 -6 -6 -5 -5 -5 -5 ------- Run | Yrd Mat Mat Min Zio Pro Fac DSF Fac Upp Upp Zhi Traps Triggered . | . . . . . . . . . . . . Indirectly . | . . . . . . . . . . . . Trap Hack Attempts . | . . . . . . . . . . . . Triggered . | . . . . . . . . . . . . Disarmed . | . . . . . . . . . . . . Reprogrammed . | . . . . . . . . . . . . Reused . | . . . . . . . . . . . . Traps Extracted . | . . . . . . . . . . . . Installed . | . . . . . . . . . . . . Triggered 2 | . . . . . . . . 1 1 . . Machines | -11 -10 -9 -9 -7 -6 -6 -6 -5 -5 -5 -5 ---------- Run | Yrd Mat Mat Min Zio Pro Fac DSF Fac Upp Upp Zhi Machines Disabled 39 | . . 4 . . . . . 35 . . . Max in Single Turn 20 | . . 3 . . . . . 20 . . . Machines Repaired . | . . . . . . . . . . . . Machines Dismantled . | . . . . . . . . . . . . Machines Sabotaged . | . . . . . . . . . . . . Overloaded Fab Kills . | . . . . . . . . . . . . Hacking | -11 -10 -9 -9 -7 -6 -6 -6 -5 -5 -5 -5 --------- Run | Yrd Mat Mat Min Zio Pro Fac DSF Fac Upp Upp Zhi Machines Accessed 11 | . . . . . . 1 . 5 . . 5 Terminals 6 | . . . . . . 1 . 5 . . . Fabricators . | . . . . . . . . . . . . Repair Stations . | . . . . . . . . . . . . Recycling Units . | . . . . . . . . . . . . Scanalyzers . | . . . . . . . . . . . . Garrison Access . | . . . . . . . . . . . . Total Hacks 37 | . . . . . . 1 . 13 . . 23 Successful 31 | . . . . . . 1 . 7 . . 23 Failed 6 | . . . . . . . . 6 . . . Catastrophic 1 | . . . . . . . . 1 . . . Database Lockouts . | . . . . . . . . . . . . Manual 11 | . . . . . . . . 11 . . . Terminals 14 | . . . . . . 1 . 13 . . . Fabricators . | . . . . . . . . . . . . Repair Stations . | . . . . . . . . . . . . Recycling Units . | . . . . . . . . . . . . Scanalyzers . | . . . . . . . . . . . . Garrison Access . | . . . . . . . . . . . . Terminal Hacks 31 | . . . . . . 1 . 7 . . 23 Record 11 | . . . . . . . . . . . 11 Part Schematic 5 | . . . . . . . . 1 . . 4 Robot Analysis 4 | . . . . . . . . . . . 4 Prototype ID Bank 4 | . . . . . . . . . . . 4 Open DSF 1 | . . . . . . 1 . . . . . Branch Access Points 1 | . . . . . . . . 1 . . . Recall Reinforcements 2 | . . . . . . . . 2 . . . Hauler Manifests 1 | . . . . . . . . 1 . . . Zone Layout 2 | . . . . . . . . 2 . . . Fabricator Hacks . | . . . . . . . . . . . . Repair Station Hacks . | . . . . . . . . . . . . Recycling Unit Hacks . | . . . . . . . . . . . . Scanalyzer . | . . . . . . . . . . . . Garrison Access Hacks . | . . . . . . . . . . . . Unauthorized Hacks . | . . . . . . . . . . . . Terminals . | . . . . . . . . . . . . Fabricators . | . . . . . . . . . . . . Repair Stations . | . . . . . . . . . . . . Recycling Units . | . . . . . . . . . . . . Scanalyzers . | . . . . . . . . . . . . Garrison Access . | . . . . . . . . . . . . Data Cores Recovered 3 | . . . . . . . . 3 . . . Used . | . . . . . . . . . . . . Hacking Detections 3 | . . . . . . . . 3 . . . Full Trace Events . | . . . . . . . . . . . . Feedback Events . | . . . . . . . . . . . . Feedback Blocked . | . . . . . . . . . . . . Robot Schematics Acquired 3 | . . . . 3 . . . . . . . Robots Built . | . . . . . . . . . . . . Authchips . | . . . . . . . . . . . . Time . | . . . . . . . . . . . . Total Robot Build Rating . | . . . . . . . . . . . . Part Schematics Acquired 18 | . . . . 13 . . . 1 . . 4 Parts Built . | . . . . . . . . . . . . Authchips . | . . . . . . . . . . . . Time . | . . . . . . . . . . . . Total Part Build Rating . | . . . . . . . . . . . . Parts Repaired . | . . . . . . . . . . . . Time . | . . . . . . . . . . . . Parts Recycled . | . . . . . . . . . . . . Recycled Matter . | . . . . . . . . . . . . Retrieved Matter . | . . . . . . . . . . . . Retrieved Components . | . . . . . . . . . . . . Parts Scanalyzed . | . . . . . . . . . . . . Part Schematics Acquired . | . . . . . . . . . . . . Parts Damaged . | . . . . . . . . . . . . Bothacking | -11 -10 -9 -9 -7 -6 -6 -6 -5 -5 -5 -5 ------------ Run | Yrd Mat Mat Min Zio Pro Fac DSF Fac Upp Upp Zhi Used RIF Installer . | . . . . . . . . . . . . Robots Hacked . | . . . . . . . . . . . . Non-combat . | . . . . . . . . . . . . Combat . | . . . . . . . . . . . . Robot Hacks Applied . | . . . . . . . . . . . . Relay Couplers Released . | . . . . . . . . . . . . Fabnet Peak Effective % . | . . . . . . . . . . . . Robots Rewired . | . . . . . . . . . . . . Allies Hacked . | . . . . . . . . . . . . Hacks Repelled . | . . . . . . . . . . . . Allies | -11 -10 -9 -9 -7 -6 -6 -6 -5 -5 -5 -5 -------- Run | Yrd Mat Mat Min Zio Pro Fac DSF Fac Upp Upp Zhi Total Allies 11 | . . . 1 10 . . . . . . . Largest Group 10 | . . . 1 10 10 5 5 . . . . Highest-Rated Group 249 | . . . 31 249 249 134 134 . . . . Highest-Rated Ally 31 | . . . 31 31 31 31 31 . . . . Total Orders . | . . . . . . . . . . . . Ally Attacks 67 | . . . . . 26 . 41 . . . . Total Damage 1118 | . . . . . 392 . 726 . . . . Kills 10 | . . . . . 6 . 4 . . . . Allies Corrupted . | . . . . . . . . . . . . Allies Melted . | . . . . . . . . . . . . Intel | -11 -10 -9 -9 -7 -6 -6 -6 -5 -5 -5 -5 ------- Run | Yrd Mat Mat Min Zio Pro Fac DSF Fac Upp Upp Zhi Robot Analysis Total 4 | . . . . . . . . . . . 4 Derelict Logs Recovered 5 | . . . 1 1 . . . . 2 1 . Drone Launches . | . . . . . . . . . . . . Drone Recoveries . | . . . . . . . . . . . . Exploration | -11 -10 -9 -9 -7 -6 -6 -6 -5 -5 -5 -5 ------------- Run | Yrd Mat Mat Min Zio Pro Fac DSF Fac Upp Upp Zhi Turns Passed 6944 | 88 192 562 91 2550 623 44 243 1654 561 201 135 Spaces Moved 2925 | 46 95 186 36 1053 253 24 96 635 288 129 84 Core 2 | 2 . . . . . . . . . . . Treads 2880 | 44 95 186 36 1053 253 24 96 592 288 129 84 Legs . | . . . . . . . . . . . . Wheels . | . . . . . . . . . . . . Hover 43 | . . . . . . . . 43 . . . Flight . | . . . . . . . . . . . . Fastest Speed 50 | 50 160 160 240 240 240 160 160 135 135 135 135 Average Speed 209 | 155 160 230 240 240 240 160 194 212 135 135 135 Slowest Speed 540 | 160 160 240 240 240 240 160 240 540 135 135 135 Overloaded Moves . | . . . . . . . . . . . . Propulsion Burnouts . | . . . . . . . . . . . . Robots Hopped . | . . . . . . . . . . . . Cave-ins Triggered . | . . . . . . . . . . . . Teleports 1 | . . . . . . . . . . . 1 Exploration Rate (%) 37 | 6 26 30 12 87 48 1 75 18 50 23 77 Regions Visited 11 Branch Regions 6 Pre-discovered Areas 4 | . . . . . . . . . 1 . 3 Known Exits Taken 2 | . . . . . . 1 . 1 . . . Unknown Exits Taken 8 | 1 1 1 1 1 1 . . . 1 1 . Scrap Searched 10 | . . . . 4 2 . . . 4 . . Spaces Dug . | . . . . . . . . . . . . Terrain Destroyed 232 | . . 35 4 . . . . 182 10 1 . Melee . | . . . . . . . . . . . . Projectile 36 | . . . . . . . . 25 10 1 . AOE 196 | . . 35 4 . . . . 157 . . . Terrain Rammed . | . . . . . . . . . . . . Walls Destroyed . | . . . . . . . . . . . . Machines Disabled . | . . . . . . . . . . . . Actions | -11 -10 -9 -9 -7 -6 -6 -6 -5 -5 -5 -5 --------- Run | Yrd Mat Mat Min Zio Pro Fac DSF Fac Upp Upp Zhi Total 3378 | 59 111 256 37 1076 259 30 140 788 385 138 99 Wait 57 | . . . . 5 1 1 1 11 38 . . Move 2915 | 45 94 185 35 1052 252 23 95 635 287 128 84 Hop . | . . . . . . . . . . . . Pick Up 55 | 5 2 18 . 5 . . 15 7 2 1 . Fast Attach 35 | 6 2 5 . 1 . . 3 12 4 . 2 Attach 27 | . . 2 . . . 6 . 8 9 1 1 Detach 3 | . . 1 . . . . . 1 . . 1 Swap 19 | . . 3 . 3 . . 7 4 2 . . Drop 41 | 1 1 7 . 6 . . 13 13 . . . Fire 193 | . 12 32 2 4 6 . 6 93 30 8 . Melee 13 | . . . . . . . . . 9 . 4 Ram . | . . . . . . . . . . . . Kick . | . . . . . . . . . . . . Crush 13 | 2 . 3 . . . . . 4 4 . . Escape Stasis 7 | . . . . . . . . . . . 7 Rewire . | . . . . . . . . . . . . Trap . | . . . . . . . . . . . . Miscellaneous . | . . . . . . . . . . . . Route ------- -11/Scrapyard -10/Materials -9/Materials -9/Mines -7/Zion -6/Proximity Caves -6/Factory -6/DSF -5/Factory (discovered 2 exits: *Upp x2) -5/Upper Caves -5/Upper Caves -5/Zhirov (discovered 1 exit: [*Pro]) History --------- Turn | Location | Event 28 | -11/Scrapyard | Discovered new exit (range 16) 89 | -11/Scrapyard | Entered Materials 191 | -10/Materials | Discovered new exit (range 3) 281 | -10/Materials | Entered another Materials area 281 | -9/Materials | Evolved 2 slots: Weapon x2 605 | -9/Materials | Build established: Gunner 792 | -9/Materials | Discovered new exit (range 12) 843 | -9/Materials | Entered Mines 846 | -9/Mines | Received a Mining Laser from a helpful Derelict 925 | -9/Mines | A Derelict revealed a hidden shortcut to a safe place 934 | -9/Mines | Entered Zion 934 | -7/Zion | Accompanied by 1 ally 1386 | -7/Zion | Found Prototype Launcher 1386 | -7/Zion | Identified Rocket Array 1392 | -7/Zion | Found Rocket Array 1395 | -7/Zion | Found Rocket Array 1475 | -7/Zion | Gained Derelict followers 1889 | -7/Zion | Given A8's code to call for help 1963 | -7/Zion | Met Imprinter 2517 | -7/Zion | Learned Factory emergency access door positions 2616 | -7/Zion | Given the Hacking Drone Bay 2626 | -7/Zion | Found Prototype Device 3196 | -7/Zion | Gained Derelict followers 3397 | -7/Zion | Learned Factory stockpile data 3450 | -7/Zion | Discovered new exit (range 10) 3484 | -7/Zion | Entered Proximity Caves 3484 | -6/Proximity Caves | Accompanied by 10 allies 3598 | -6/Proximity Caves | Attracted the attention of an 0b10 checkpoint 4058 | -6/Proximity Caves | Discovered new exit (range 8) 4094 | -6/Proximity Caves | Lost 3 allies 4107 | -6/Proximity Caves | Entered Factory 4107 | -6/Factory | Accompanied by 5 allies 4107 | -6/Factory | Evolved 6 slots: Propulsion x2, Utility x4 4150 | -6/Factory | Identified exit to DSF 4151 | -6/Factory | Entered DSF 4151 | -6/DSF | Accompanied by 5 allies 4193 | -6/DSF | Additional patrols routed to DSF 4334 | -6/DSF | Sterilization system engaged 4347 | -6/DSF | Lost 3 allies 4354 | -6/DSF | Ambient heat levels rising (+10) 4361 | -6/DSF | Discovered new exit (range 15) 4369 | -6/DSF | Ambient heat levels rising (+10) 4384 | -6/DSF | Ambient heat levels rising (+10) 4394 | -6/DSF | Entered Factory 4394 | -5/Factory | Evolved 2 slots: Utility x2 4529 | -5/Factory | Build established: Scavenger-Gunner 5327 | -5/Factory | Cargo convoy interrupted 5582 | -5/Factory | Found Prototype Device 5582 | -5/Factory | Identified Exp. ECM Suite 5599 | -5/Factory | Found PL-3XN's Ring of Power 5653 | -5/Factory | Build established: Hacker-Tank 5781 | -5/Factory | Identified exit to Upper Caves 5998 | -5/Factory | System corruption reached 10% 6048 | -5/Factory | Entered Upper Caves 6054 | -5/Upper Caves | Met a Warlord Commander 6055 | -5/Upper Caves | Learned location of Warlord (-4) 6056 | -5/Upper Caves | Warlord Commander delivered Encrypted Comm Array 6056 | -5/Upper Caves | Found Encrypted Comm Array 6059 | -5/Upper Caves | Encountered a Warlord checkpoint 6075 | -5/Upper Caves | Lost 5 parts (3u2w) 6147 | -5/Upper Caves | Spotted B-75 Beast 6201 | -5/Upper Caves | Destroyed B-75 Beast 6363 | -5/Upper Caves | Learned 8 Factory zone layouts 6456 | -5/Upper Caves | Learned Factory emergency access door positions 6514 | -5/Upper Caves | Build established: Tank 6599 | -5/Upper Caves | Discovered new exit (range 8) 6609 | -5/Upper Caves | Entered another Upper Caves area 6643 | -5/Upper Caves | Learned location of 1 exit from Factory 6741 | -5/Upper Caves | Spotted B-75 Beast 6793 | -5/Upper Caves | Discovered new exit (range 14) 6810 | -5/Upper Caves | Entered Zhirov 6810 | -5/Zhirov | Discovered new exit (range 3) 6835 | -5/Zhirov | Met Zhirov 6866 | -5/Zhirov | Found Alien Artifact 6866 | -5/Zhirov | Identified Transdimensional Reconstructor 6866 | -5/Zhirov | Warped through subspace 6867 | -5/Zhirov | Core integrity fell below 50% 6881 | -5/Zhirov | Learned location of Quarantine (-3) 6881 | -5/Zhirov | Learned location of Testing (-2) 6881 | -5/Zhirov | Learned location of Command (-1) 6889 | -5/Zhirov | Zhirov requested help retrieving the SGEMP Prototype 6900 | -5/Zhirov | Attacked by Zhirov 6921 | -5/Zhirov | Found Alien Artifact 6921 | -5/Zhirov | Identified Integrated Reactor 6921 | -5/Zhirov | Installed Integrated Reactor, increased core energy generation (+10) 6935 | -5/Zhirov | Zhirov warped through subspace 6945 | -5/Zhirov | Zhirov detonated his lab 6945 | -5/Zhirov | Cloak Generator disabled 6945 | -5/Zhirov | Core destroyed Last Messages --------------- 06930_ Exp. Biometal Heavy Treads destroyed. 06930_ Imp. Medium Armor Plating destroyed. 06931_ System corrupted: Energy discharge (-27). 06932_ Molecular Scythe follow-up attack on Zhirov. 06933_ Zhirov: "Looks like we have to say goodbye to this place, and you." 06933_ Held in stasis. 06935_ Zhirov warps through subspace. 06935_ Perun warps through subspace. 06936_ Svarog warps through subspace. 06945_ Machine disabled. 06945_ Encrypted Comm Array destroyed. 06945_ Machine disabled. 06945_ IB-9BT(i) destroyed. 06945_ O-32 Director destroyed. 06945_ Authchip [Weapon] destroyed. 06945_ Molecular Scythe destroyed. 06945_ Q3-JX0(L) destroyed. 06945_ C-55 Analyst destroyed. 06945_ Imp. Focal Shield destroyed. 06945_ TY-OHO(t) destroyed. Map ----- +----------------------------------------------------+ | ???????????????????????????????????????? | | ???????????????????????????????????????? | | ???????????????????????????#""#????????? | | ??????????????????????????##""##???????? | | ????????????????????###??##""""##??????? | | ????????????######### ##?#""""""#??????# | | ????????????#""""""" #?# """" #?????## | | ????#######?#" " ### ##?#### | | ????#"X"X"#?#" ### | | ????#X X#?#" | | ????#" "#### | | ????#"" ###### | | ????##### #### ### ##????## | | ?????? " # """" #??????? | | ???? #" """""#??????? | | ???? #" # """"##??????? | | ??? ## # ""##???????? | | ??? # ""#????????? | | ?? # # ??????????? | | ?? ??????????? | | ?? ??????????? | | ?" #" ?????????? | | ?" ?????????? | | ?"" ????????? | | ?"" "?????????? | | ? " @ ????????? | | ????????? | | #????????? | | ?" ?????????? | | ? ?????????? | | ?? ??????????? | | ?? ??????????? | | ?? % % ??????????? | | ??? ???????????? | | ??? ???????????? | | ???? ????????????? | | ???? " ????????????? | | ?????? # ??????????????? | | ???????? # #? ????????????????? | | ??????????? # ###???????????????????? | | ?????????????? ??????????????????????? | | ???????????????????????????????????????? | | ???????????????????????????????????????? | | | | | | | | | | | | | | | +----------------------------------------------------+ Best States ------------- Heat Dissipation 78 Energy Generation 19 Energy Capacity 315 Matter Stores 300 Matter Capacity 300 Sight Range 16 Terrain Scan Density 10 Armor Coverage 525 Resistance: KI 25 Resistance: TH 20 Evasion (%) 40 Targeting Accuracy 22 Recoil Reduction 4 Offensive Hacking 56 Defensive Hacking 10 Authchip Count 1 Item Schematics ----------------- Enh. Optical Array | -7/Zion | Archive Adv. Terrain Scan Processor | -7/Zion | Archive Xenon Bombardment Thruster | -7/Zion | Archive Thermic Laser | -7/Zion | Archive Coolant Injector | -7/Zion | Archive Gauss Rifle | -7/Zion | Archive Disruptor Cannon | -7/Zion | Archive Energy Well | -7/Zion | Archive Power Amplifier | -7/Zion | Archive Arc Projector | -7/Zion | Archive Arm. Huge Wheel | -7/Zion | Archive Wave Gun | -7/Zion | Archive Proton Missile Launcher | -7/Zion | Archive Cld. VTOL Module | -5/Factory | Hacked Assault Drone Bay | -5/Zhirov | Free Exp. Optical Array | -5/Zhirov | Free Imp. Arc Thrower | -5/Zhirov | Free Exp. Heat Sink | -5/Zhirov | Free Robot Schematics ------------------ A-02 Transporter | -7/Zion | Archive M-14 Sweeper | -7/Zion | Archive Y-54 Guardian | -7/Zion | Archive Fabricated ------------ Nothing Alien Tech Used ----------------- Transdimensional Reconstructor Integrated Reactor Achievements -------------- None Challenges ------------ None Game ------ Seed LaserMobilePurifier Manual? 0 Play Time 00:46:20 Cumulative 84.9 hours Start 2024.09.22 @ 15:26:42 End 2024.09.22 @ 16:10:58 Sessions 1 Manual Loads 0 Difficulty Rogue Special Mode None Game No. 97 Rogue 93 Adventurer 0 Explorer 4 Win Type - Total 5 Types 3/0/0/2/0/0/0/0/0 Lore% 38 Gallery% 60 Achievement% 54 Wizard Run 0 Options --------- Layout 0 ASCII 0 Keyboard 0 Movement Numpad Keybinds 0 Fullscreen 2 Font 18/SmallcapsGlow Map View 76x50 Zoom Use 0% Tactical HUD 1 Map Filters NONE Filters NONE Steam 1 RUN: 99c0136a-d48e-41d5-8808-60d1d91b0de8